[Event "TUR-ch U13-18 Open 2023"]
[Site "Antalya"]
[Date "2023.01.23"]
[Round "2"]
[White "Demirtas, Alper"]
[Black "Once, Ahmet Asim"]
[Result "1-0"]
[ECO "D23"]
[WhiteElo "1990"]
[BlackElo "1479"]
[Annotator "TA"]
[PlyCount "92"]
[EventDate "2023.01.17"]
[EventType "swiss"]
[EventCountry "TUR"]
[SourceTitle "playchess.com"]
[Source "ChessBase"]
[SourceQuality "1"]
[TimeControl "5400+30"]

{[%evp 16,92,28,12,16,19,14,12,24,16,25,0,43,50,38,37,59,52,45,40,49,62,82,74,141,64,103,69,98,76,64,64,106,106,115,91,99,18,21,27,19,25,22,20,85,76,85,87,83,47,37,52,60,67,141,127,195,189,210,201,385,377,584,608,588,595,1549,1480,1371,1437,1266,1202,2754,1049,29984,29974,29995,29996,29998]} 1. c4 {[%emt 0:01:00]} c6 {[%emt 0:01:00]} 2. Nf3 {[%emt 0:00:30]} d5 {[%emt 0:00:30]} 3. d4 {[%emt 0:00:00]} Nf6 {[%emt 0:00:30]} 4. Qc2 {[%emt 0:00:00]} dxc4 {[%emt 0:00:30]} 5. Qxc4 {[%emt 0:00:00]} Bf5 {[%emt 0:00:30]} 6. g3 {[%emt 0:00:00]} e6 {[%emt 0:00:30]} 7. Bg2 {[%emt 0:00:00]} Nbd7 {[%emt 0:01:30] 7...Be7 injects fresh life into this line.} 8. O-O {[%emt 0:00:00]} Be7 {[%emt 0:00:30]} 9. e3 {[%emt 0:01:30]} O-O {[%emt 0:01:30] D23: Queen's Gambit Accepted: 3 Nf3 Nf6 sidelines.} 10. Qe2 {[%emt 0:00:30]} Bg6 {[%emt 0:00:30]} 11. Rd1 {[%emt 0:01:30]} Qc7 {[%emt 0:04:30] The position is equal.} 12. Nc3 {[%emt 0:10:30]} Ne4 {[%emt 0:26:30]} 13. Nd2 {[%emt 0:02:30] [#]} Nxd2 $146 {[%emt 0:18:30]} ({Predecessor:} 13... Nxc3 14. bxc3 Qa5 15. Bb2 Nb6 16. Nf3 Be4 17. Ne5 Bxg2 18. Kxg2 Bd6 19. Nf3 Qa4 {0-1 Jordan,J (2189)-Zakharov,O (2264) SA-2011-0-00204}) 14. Bxd2 {[%emt 0:01:30]} Rfd8 {[%emt 0:04:30]} 15. e4 {[%emt 0:09:30]} Nf6 {[%emt 0:06:30]} 16. Be3 {[%emt 0:03:30]} Bb4 {[%emt 0:08:30]} 17. f3 {[%emt 0:13:30]} Qa5 {[%emt 0:04:06]} 18. Qc4 {[%emt 0:04:30]} b5 {[%emt 0:06:40]} 19. Qb3 {[%emt 0:03:30]} (19. Qxc6 Rac8 20. Qxb5 (20. Qb7 $2 Rb8 $19) 20... Bxc3 $17) 19... Nd7 {[%emt 0:05:15] [#]} (19... Bf8 $142) 20. Ne2 {[%emt 0:04:30]} ({White should play} 20. a4 $1 $16 {[%cal Ra4b5] axb5 is the strong threat.} Bxc3 21. bxc3) 20... Nb6 {[%emt 0:02:11][%cal Bd7b6,Bb6c4,Bc4a3][%mdl 32]} 21. a3 {[%emt 0:03:30]} Bf8 {[%emt 0:00:52]} 22. Bd2 {[%emt 0:02:30]} Qa6 {[%emt 0:01:19]} 23. Bb4 {[%emt 0:00:30]} Nc4 {[%emt 0:01:58][%cal Oc6c5]} 24. Qc3 {[%emt 0:01:30]} Qb6 {[%emt 0:02:50]} 25. Bxf8 {[%emt 0:03:30]} (25. b3 {looks sharper.} c5 26. Bxc5 Bxc5 27. bxc4 Rxd4 28. Nxd4 e5 29. cxb5 Bxd4+ 30. Rxd4 exd4 31. Qc6) 25... Rxf8 {[%emt 0:00:37]} 26. b3 {[%emt 0:01:30]} (26. a4 $16) 26... Nxa3 $1 $11 {[%emt 0:00:38][%mdl 64] [#] Decoy} 27. Rdc1 {[%emt 0:00:30][%cal Bd1c1,Bc1c6,Bc6c5][%mdl 32] Black must now prevent Qb4.} (27. Rxa3 $2 b4 28. Qc4 bxa3 $19) 27... b4 {[%emt 0:00:31]} 28. Qxc6 {[%emt 0:01:30]} Qxc6 {[%emt 0:00:30]} 29. Rxc6 {[%emt 0:00:00]} f6 {[%emt 0:00:28]} (29... Rfd8 $11 {keeps the balance.}) 30. Nf4 $16 {[%emt 0:14:25]} Be8 {[%emt 0:00:32]} 31. Rc5 {[%emt 0:01:04]} Bf7 {[%emt 0:00:27]} 32. d5 {[%emt 0:01:05] White is more active.} exd5 {[%emt 0:00:28]} 33. Nxd5 {[%emt 0:00:48]} Bxd5 {[%emt 0:00:35]} 34. exd5 {[%emt 0:00:16]} a5 {[%emt 0:00:28]} (34... Rfc8 $14 35. Rc6 Nb5) 35. d6 {[%emt 0:01:40]} Rfd8 {[%emt 0:00:30]} (35... Rac8 $16 36. Rxa5 Rfd8) 36. Rd1 $36 {[%emt 0:01:27][%mdl 2048] Hoping for Bh3. White is on the roll.} ({Resist} 36. f4 Rab8 $16) 36... a4 {[%emt 0:00:31]} 37. f4 {[%emt 0:00:49]} Ra7 {[%emt 0:00:32]} (37... Rab8 38. Bd5+ (38. bxa4 b3 $11) (38. d7 Kf8 $14) 38... Kf8) 38. bxa4 {[%emt 0:01:16]} Rad7 {[%emt 0:00:47]} (38... Kf8 {was necessary.} 39. Bh3 b3) 39. Rc6 {[%emt 0:00:17]} Kf8 {[%emt 0:00:12]} 40. Bh3 {[%emt 0:01:03]} Rb7 {[%emt 0:00:57]} 41. Rc8 {[%emt 0:00:11]} Rb8 {[%emt 0:00:04]} 42. d7 {[%emt 0:01:00]} Ke7 {[%emt 0:00:25]} 43. Re1+ {[%emt 0:00:09]} Kd6 {[%emt 0:00:40]} 44. Re8 {[%emt 0:00:05]} (44. Rxb8 $142 Rxd7 45. Bxd7 Kxd7 46. Rxb4) 44... b3 {[%emt 0:00:30]} 45. Rxb8 {[%emt 0:00:03]} Kc7 {[%emt 0:00:35]} 46. Rexd8 {[%emt 0:00:30]} h5 {[%emt 0:00:52] Weighted Error Value: White=0.12 (very precise) /Black=0.50} 1-0

[Event "TUR-ch U13-18 Open 2023"]
[Site "Antalya"]
[Date "2023.01.23"]
[Round "2"]
[White "Temizer, Umut"]
[Black "Gulbas, Isa"]
[Result "1-0"]
[ECO "A08"]
[WhiteElo "1989"]
[BlackElo "1601"]
[Annotator "TA"]
[PlyCount "73"]
[EventDate "2023.01.17"]
[EventType "swiss"]
[EventCountry "TUR"]
[SourceTitle "playchess.com"]
[Source "ChessBase"]
[SourceQuality "1"]
[TimeControl "5400+30"]

{[%evp 9,73,-22,-21,-49,7,-8,-18,-18,26,0,0,-32,-19,-56,-45,-119,47,54,48,45,33,38,38,0,0,0,0,-93,-81,-237,-229,-263,119,46,282,-114,139,150,177,164,238,238,318,210,227,188,343,343,584,584,701,721,697,656,897,832,1394,1383,1351,1303,1898,1884,1372,1250,29989,29986]} 1. Nf3 {[%emt 0:01:00]} c5 {[%emt 0:01:00]} 2. g3 {[%emt 0:01:30]} Nc6 {[%emt 0:00:00]} 3. Bg2 {[%emt 0:01:30]} d5 {[%emt 0:01:00]} 4. O-O {[%emt 0:00:30]} e5 {[%emt 0:02:30]} 5. d3 {[%emt 0:03:30]} Nf6 {[%emt 0:05:30]} 6. Nfd2 {[%emt 0:03:30] [#] A08: King's Indian Attack.} Qc7 $146 {[%emt 0:04:30]} (6... Bg4 $15) ({Predecessor:} 6... Be6 7. e4 d4 8. f4 g6 9. Nc4 Bxc4 10. dxc4 Bg7 11. Nd2 O-O 12. Qe2 Nd7 13. Nf3 Qc7 {0-1 Silva,J (1328)-Da Costa,L (1891) Niteroi op 2nd 2022 (3)}) 7. Nc3 $11 {[%emt 0:00:30]} Be6 {[%emt 0:02:30]} (7... d4 $5 {[%cal Rd4c3]} 8. Nb5 Qd8 $11) 8. e4 {[%emt 0:00:30][%cal Re4d5] The position is equal.} O-O-O {[%emt 0:02:30]} 9. exd5 {[%emt 0:19:30]} Nxd5 {[%emt 0:00:30]} 10. a3 {[%emt 0:02:30]} h5 {[%emt 0:08:30][%cal Bh7h5,Bh5h4][%mdl 32]} 11. Nde4 {[%emt 0:06:30]} Be7 {[%emt 0:15:30]} 12. Na4 {[%emt 0:04:30]} (12. Ng5 $15) 12... Nd4 $2 {[%emt 0:09:30]} (12... c4 $17 {And now ...Bg4 would win.} 13. Bg5 (13. dxc4 $2 Nf4 $19) 13... f6) 13. c3 $14 {[%emt 0:04:30]} Nf5 {[%emt 0:02:30]} 14. b4 {[%emt 0:02:30] Strongly threatening c4.} c4 $1 {[%emt 0:05:30]} 15. Nac5 $36 {[%emt 0:08:30][%mdl 2048] White fights for an advantage.} h4 {[%emt 0:10:30]} 16. Nxe6 {[%emt 0:05:30]} fxe6 {[%emt 0:00:00]} 17. Qa4 {[%emt 0:05:30]} Kb8 {[%emt 0:04:00]} 18. dxc4 {[%emt 0:02:30]} (18. Qa5 $1 $11 {remains equal.}) 18... Qxc4 $17 {[%emt 0:05:24] ...hxg3 would be deadly.} 19. Re1 $2 {[%emt 0:05:30]} (19. Bd2 $17) 19... hxg3 {[%emt 0:04:44]} 20. hxg3 {[%emt 0:00:30]} Rdf8 $2 {[%emt 0:08:56]} ({Black should try} 20... Nxc3 $19 21. Qc2 Rd1) 21. Bd2 {[%emt 0:02:33]} ({Better is} 21. Qd1 $16) 21... Bd8 $2 {[%emt 0:02:27]} (21... Qc7 $14) 22. Qd1 $2 {[%emt 0:00:13] [#]} (22. Nc5 $18 Nd6 23. Qd7 (23. Nxe6 $2 {loses.} Rxf2 24. Qd7 Rxg2+ 25. Kxg2 Ne3+ 26. Rxe3 Qd5+ 27. Rf3 Qxd2+ 28. Rf2 Qd5+ 29. Rf3 e4 $19) (23. Nd7+ Ka8 $16)) 22... Bb6 $2 {[%emt 0:03:26][%mdl 8192]} (22... Nxg3 $1 $17 {[%cal Od8b6] White must now prevent ...Bb6!} 23. Nxg3 (23. Nc5 $2 Qh4 $19) 23... Qh4) 23. Qe2 $16 {[%emt 0:00:01]} Qc7 {[%emt 0:00:25][%cal Of5g3] [#]} 24. Nc5 $1 {[%emt 0:00:33][%mdl 64] Deflection} Bxc5 {[%emt 0:00:52]} (24... Qf7 $142) 25. bxc5 $18 {[%emt 0:00:30]} Qxc5 {[%emt 0:00:00]} 26. Qxe5+ {[%emt 0:00:29]} Ka8 {[%emt 0:00:00]} (26... Nd6 $2 27. Bf4 (27. Qxe6 $2 Qxf2#) 27... Rxf4 28. gxf4 $18) 27. Re2 {[%emt 0:05:56][%cal Be1e2,Be2e4,Be4d4,Bd4d5,Bd5d2][%mdl 32]} Qc4 $2 {[%emt 0:01:12]} (27... Rf6 {was necessary.} 28. Rae1 Qc8) 28. Qxe6 {[%emt 0:01:53]} Rd8 {[%emt 0:00:31]} (28... Nb6 29. Rae1 Qc8) 29. Re4 {[%emt 0:01:58]} Qd3 {[%emt 0:00:25]} 30. Qxf5 {[%emt 0:00:13]} Qxd2 {[%emt 0:00:30]} 31. Rd4 {[%emt 0:00:30]} Qb2 {[%emt 0:00:00]} 32. Rad1 {[%emt 0:00:00]} a6 {[%emt 0:00:16]} 33. Rxd5 {[%emt 0:00:20]} Rdf8 {[%emt 0:00:30]} 34. R5d2 {[%emt 0:00:00]} Qb6 {[%emt 0:01:20]} 35. Qb1 {[%emt 0:00:59]} Qxb1 {[%emt 0:00:49]} 36. Rxb1 {[%emt 0:00:30]} Rc8 {[%emt 0:00:30]} 37. Bxb7+ {[%emt 0:00:00] Weighted Error Value: White=0.48/Black=1.02} 1-0

[Event "TUR-ch U13-18 Open 2023"]
[Site "Antalya"]
[Date "2023.01.23"]
[Round "2"]
[White "Caliskan, Seha"]
[Black "Kaynak, Deniz Can"]
[Result "1-0"]
[ECO "E90"]
[WhiteElo "1954"]
[BlackElo "1620"]
[Annotator "TA"]
[PlyCount "61"]
[EventDate "2023.01.17"]
[EventType "swiss"]
[EventCountry "TUR"]
[SourceTitle "playchess.com"]
[Source "ChessBase"]
[SourceQuality "1"]
[TimeControl "5400+30"]

{[%evp 18,61,52,47,76,76,106,81,80,80,82,83,88,83,65,78,84,73,60,75,81,72,67,67,64,66,110,112,116,116,312,294,318,278,287,298,715,714,700,684,610,473,1312,1266,1190,1168]} 1. d4 {[%emt 0:01:00]} Nf6 {[%emt 0:01:00]} 2. Nf3 {[%emt 0:00:30]} d6 {[%emt 0:00:30]} 3. c4 {[%emt 0:00:30]} g6 {[%emt 0:00:30]} 4. Nc3 {[%emt 0:00:00]} Bg7 {[%emt 0:00:00]} 5. e4 {[%emt 0:00:00]} O-O {[%emt 0:00:00]} 6. h3 {[%emt 0:00:00]} c5 {[%emt 0:00:30]} 7. d5 {[%emt 0:00:00]} e6 {[%emt 0:01:30]} 8. Bd3 {[%emt 0:00:30]} exd5 {[%emt 0:00:30]} 9. exd5 {[%emt 0:00:30]} Re8+ {[%emt 0:00:30]} 10. Be3 {[%emt 0:00:30]} Rxe3+ {[%emt 0:00:30] E90: King's Indian: Classical: Early deviations and 6 h3.} 11. fxe3 {[%emt 0:00:30]} Nbd7 {[%emt 0:00:30]} 12. O-O {[%emt 0:00:00][%cal Bh1f1,Bf1f2,Bf2f3,Bf3f7][%mdl 32]} Qe7 {[%emt 0:03:30] White is better.} 13. Qd2 {[%emt 0:00:00]} Nh5 {[%emt 0:02:30]} 14. Rf2 {[%emt 0:00:30]} Ne5 {[%emt 0:05:30]} 15. g4 {[%emt 0:08:30]} Nf6 {[%emt 0:15:30]} 16. Nxe5 {[%emt 0:32:30]} Qxe5 {[%emt 0:00:30] [#]} 17. Rf3 $146 {[%emt 0:00:30] Against Qg3+} ({Predecessor:} 17. Kg2 Bd7 18. Raf1 Rf8 19. Ne2 Ne4 20. Bxe4 Qxe4+ 21. Kg1 Qxc4 22. b3 Qe4 23. Ng3 {1-0 Li,B (2361)-Janaszak,D (2333) Titled Tuesday intern op 01st Mar Late blitz 2022 (4)}) 17... h5 {[%emt 0:12:30]} 18. gxh5 {[%emt 0:00:00]} Qxh5 {[%emt 0:01:30]} 19. Qg2 {[%emt 0:03:00]} Nh7 {[%emt 0:10:30]} 20. Ne4 {[%emt 0:08:30] Prevents Ng5.} Be5 {[%emt 0:16:30]} 21. Raf1 {[%emt 0:00:30]} Kh8 {[%emt 0:09:28]} 22. Rxf7 {[%emt 0:21:30]} Bxh3 {[%emt 0:00:26] [#]} 23. Qf3 {[%emt 0:01:30] aiming for Qxh5.} Bh2+ $2 {[%emt 0:08:02] Black cannot hold the game after this.} 24. Kxh2 $18 {[%emt 0:00:00] Threatening mate with Qxh5.} Bg4+ {[%emt 0:00:00] [#]} (24... Bxf1+ $2 25. Qxh5 gxh5 26. Bxf1 $18) 25. Kg2 $1 {[%emt 0:00:00]} Bxf3+ {[%emt 0:03:27]} 26. R1xf3 {[%emt 0:00:30] Strongly threatening Rh3.} Ng5 {[%emt 0:00:30] Inhibits Rh3.} (26... Re8) 27. Nxg5 {[%emt 0:00:30] White is clearly winning.} Qxg5+ {[%emt 0:00:30]} 28. Rg3 {[%emt 0:00:30][%mdl 64] Skewer} Qe5 {[%emt 0:00:59]} 29. Rxb7 {[%emt 0:04:26]} Rf8 {[%emt 0:03:43]} (29... Re8 $142 30. Bxg6 Re7 31. Rb8+ Kg7 32. Bc2+ Kf7 33. Rf3+ Kg7 34. Rg3+ Kf7) 30. Bxg6 {[%emt 0:01:07] Rh3+ is the strong threat.} ({Stronger than} 30. Rxa7 Qxb2+ 31. Kh3 Qf2 32. Bxg6 Rf3 33. Ra8+ Kg7 34. Ra7+ Kf8 35. Ra8+ Kg7 36. Ra7+ Kh8 37. Ra8+ Kg7 $11) 30... Rf6 {[%emt 0:02:02]} 31. Bd3 {[%emt 0:00:24] Artfully played by Caliskan.   Weighted Error Value: White=0.12 (very precise) /Black=0.24 (precise)} (31. Rxa7 $2 {is the wrong capture.} Rxg6 {[%mdl 64] Remove Defender, Decoy} 32. Rxg6 Qe4+ 33. Kf2 Qxg6 $19) 1-0

[Event "TUR-ch U13-18 Open 2023"]
[Site "Antalya"]
[Date "2023.01.23"]
[Round "2"]
[White "Turkmen, Yusuf Cagan"]
[Black "Tatlioglu, Ege"]
[Result "0-1"]
[ECO "B40"]
[WhiteElo "1943"]
[BlackElo "1251"]
[Annotator "TA"]
[PlyCount "87"]
[EventDate "2023.01.17"]
[EventType "swiss"]
[EventCountry "TUR"]
[SourceTitle "playchess.com"]
[Source "ChessBase"]
[SourceQuality "1"]
[TimeControl "5400+30"]

{[%evp 9,87,15,17,17,17,18,24,24,25,1,15,8,8,-17,-22,-41,-40,-39,-33,-44,-37,-40,-35,-46,-29,-57,-53,-468,-468,-452,-460,-466,-462,-463,-458,-635,-538,-558,-468,-462,-462,-665,-670,-653,-652,-641,-537,-560,-531,-790,-803,-959,-951,-951,-934,-995,-995,-5593,-1395,-1346,-1010,-1010,-1007,-984,-854,-821,-814,-964,-962,-1002,-1004,-979,-985,-1399,-1351,-1164,-1013,-949,-929,-884]} 1. e4 {[%emt 0:01:00]} c5 {[%emt 0:01:00]} 2. Nf3 {[%emt 0:00:30]} e6 {[%emt 0:00:30]} 3. g3 {[%emt 0:00:00]} d5 {[%emt 0:00:30]} 4. exd5 {[%emt 0:00:00]} exd5 {[%emt 0:00:00]} 5. d4 {[%emt 0:00:00]} Nf6 {[%emt 0:07:00]} 6. Bg2 {[%emt 0:04:00] B40: Sicilian: 2...e6, Unusual lines.} Nc6 {[%emt 0:00:30]} 7. O-O {[%emt 0:03:30]} Be7 {[%emt 0:00:30][%cal Bf8e7,Be7c5,Bc5b6][%mdl 32] Active counter play!} 8. dxc5 {[%emt 0:05:30] White has an edge.} Bxc5 {[%emt 0:01:30]} 9. Re1+ {[%emt 0:00:30]} Be6 {[%emt 0:00:00] [#]} 10. c3 $146 {[%emt 0:06:30]} ({Predecessor:} 10. Nbd2 Qb6 11. Re2 Ng4 12. Qf1 O-O 13. Nb3 d4 14. Rxe6 fxe6 15. Qc4 Rxf3 16. Bxf3 {0-1 Villar Perez,S (2188)-Shyam,N (2443) Pontevedra op-A 10th 2022 (3)}) 10... O-O {[%emt 0:05:00]} 11. b4 {[%emt 0:10:30]} Bb6 {[%emt 0:03:30]} 12. b5 {[%emt 0:11:30]} Na5 {[%emt 0:03:30][%cal Bc6a5,Ba5c4,Bc4b2,Bb2d3][%mdl 32]} 13. Be3 {[%emt 0:07:30]} Rc8 {[%emt 0:05:30]} 14. Qd3 {[%emt 0:06:30]} Nc4 {[%emt 0:05:30] Hoping for ...Nxe3.} 15. Bxb6 {[%emt 0:03:30]} Qxb6 {[%emt 0:05:30]} 16. Nd4 {[%emt 0:00:30]} Rfe8 {[%emt 0:09:30]} 17. Nd2 {[%emt 0:16:30]} Nb2 {[%emt 0:07:30]} 18. Qe3 {[%emt 0:02:06][%mdl 8192] This costs White the game.} (18. Qc2 $15 Qxd4 {[%mdl 64] Pin} 19. Rec1) 18... Bg4 $19 {[%emt 0:17:30] Black is clearly winning.} 19. Qg5 {[%emt 0:00:51]} h6 {[%emt 0:03:30]} ({Not} 19... Rxc3 20. Rxe8+ Nxe8 21. Qxg4 $18) 20. Rxe8+ {[%emt 0:01:49]} Rxe8 {[%emt 0:00:00]} 21. Qh4 {[%emt 0:00:41]} Re5 {[%emt 0:03:00]} 22. Rb1 {[%emt 0:04:12]} Nd3 {[%emt 0:04:19] Threatens to win with ...Rh5.} 23. Bf1 {[%emt 0:04:34]} Nc5 {[%emt 0:03:04] Strongly threatening ...Rh5.} 24. h3 {[%emt 0:00:41]} Rh5 {[%emt 0:00:30][%mdl 64] [#] Skewer} 25. hxg4 {[%emt 0:00:30]} (25. Qxg4 $142 Nxg4 26. hxg4) 25... Rxh4 {[%emt 0:00:30]} 26. gxh4 {[%emt 0:00:30]} Nxg4 {[%emt 0:00:00]} 27. Re1 {[%emt 0:05:35]} g6 {[%emt 0:02:48]} 28. Re8+ {[%emt 0:02:10]} Kg7 {[%emt 0:00:02]} 29. N2f3 {[%emt 0:01:58]} Ne4 {[%emt 0:00:39]} 30. c4 {[%emt 0:00:48]} Ngxf2 {[%emt 0:01:59]} 31. cxd5 {[%emt 0:00:24]} Qd6 {[%emt 0:00:14] ( -> ...Qg3+)} 32. Ne5 {[%emt 0:01:04]} Qxd5 {[%emt 0:01:54]} 33. Ndf3 {[%emt 0:00:16]} Nd1 {[%emt 0:01:23]} (33... Qxa2 $142 34. Bg2 Nh3+ 35. Kh2 Nf4 36. Ne1 Qf2 37. N5f3 Nf6 38. Kh1 Nxe8 39. b6 axb6 40. h5 Nf6 41. hxg6 Ng4 42. Ng1 Qxe1 43. gxf7 Qf2 44. f8=B+ Kxf8 45. Bxb7 Qh2#) 34. Rc8 {[%emt 0:00:33]} Nd2 {[%emt 0:01:07]} 35. Be2 {[%emt 0:00:43]} Nxf3+ {[%emt 0:00:36]} 36. Nxf3 {[%emt 0:00:44]} Ne3 {[%emt 0:00:15][%cal Od5e6] ...Qe6! is the strong threat.} 37. Rc3 {[%emt 0:00:14]} Nf5 {[%emt 0:00:45] And now ...g5 would win.} 38. Kf2 {[%emt 0:00:23]} g5 {[%emt 0:00:52]} 39. hxg5 {[%emt 0:00:08]} hxg5 {[%emt 0:00:06]} 40. Rc4 {[%emt 0:00:48]} Qxb5 {[%emt 0:01:27] White must now prevent ...Qb6+.} 41. a4 {[%emt 0:00:29]} Qb6+ {[%emt 0:00:07]} 42. Ke1 {[%emt 0:00:03] [#]} Nh4 $1 {[%emt 0:00:46]} 43. Nxh4 {[%emt 0:01:02]} (43. Nd4 Ng2+) 43... gxh4 {[%emt 0:00:08]} 44. Kf1 {[%emt 0:00:33] Weighted Error Value: White=0.84/Black=0.46} 0-1